[Event "USA Championship 2022"]
[Site "Saint Louis"]
[Date "2022.10.09"]
[Round "5.1"]
[White "Robson, Ray"]
[Black "Swiercz, Dariusz"]
[Result "1/2-1/2"]
[ECO "D12"]
[WhiteElo "2690"]
[BlackElo "2652"]
[Annotator "TA"]
[PlyCount "232"]
[EventDate "2022.09.05"]
[EventType "tourn"]
[EventCountry "USA"]
[SourceTitle "playchess.com"]
[Source "ChessBase"]
[SourceQuality "1"]
[TimeControl "40/5400+30:1800+30"]

{[%evp 107,232,72,72,72,72,72,72,72,72,72,72,72,72,72,72,72,72,72,72,72,72,72,72,72,72,72,72,45,66,66,66,66,68,14,14,14,14,14,14,14,14,14,14,14,14,14,14,14,14,14,14,14,14,14,14,14,14,14,14,14,14,14,14,14,14,14,14,14,14,14,14,14,14,14,14,14,14,14,14,14,14,14,14,14,14,14,14,14,14,14,14,14,14,14,14,0,14,0,14,14,14,16,19,19,19,5,5,5,5,5,5,5,5,0,0,0,0,0,0,0,0,0,0,0,0,0,0]} 1. d4 {[%emt 0:01:17]} d5 {[%emt 0:00:23]} 2. c4 {[%emt 0:00:20]} c6 {[%emt 0:00:03]} 3. Nf3 {[%emt 0:00:37]} Nf6 {[%emt 0:00:15]} 4. e3 {[%emt 0:00:43]} Bf5 {[%emt 0:00:43]} 5. Nh4 {[%emt 0:01:28]} Bg6 {[%emt 0:14:34]} 6. Nxg6 {[%emt 0:02:05]} hxg6 {[%emt 0:00:02]} 7. Nd2 {[%emt 0:06:28]} e6 {[%emt 0:00:38]} 8. g3 {[%emt 0:00:44]} c5 {[%emt 0:17:43]} 9. dxc5 {[%emt 0:04:38]} Bxc5 {[%emt 0:00:41]} 10. Bg2 {[%emt 0:01:19]} Nc6 {[%emt 0:00:29]} 11. O-O {[%emt 0:00:59]} O-O {[%emt 0:00:29]} 12. cxd5 {[%emt 0:16:37]} exd5 {[%emt 0:00:23]} 13. Nb3 {[%emt 0:01:24]} Bb6 {[%emt 0:01:12]} 14. Bd2 {[%emt 0:00:31]} Qe7 {[%emt 0:18:05]} 15. Bc3 {[%emt 0:07:08]} Rad8 {[%emt 0:00:59]} 16. Nd4 {[%emt 0:09:10]} Rfe8 {[%emt 0:07:52]} 17. Qa4 {[%emt 0:12:05]} Qd7 {[%emt 0:02:37]} 18. Nxc6 {[%emt 0:03:14]} bxc6 {[%emt 0:00:35]} 19. Rad1 {[%emt 0:03:37]} Qe6 {[%emt 0:03:55]} 20. Bd4 {[%emt 0:00:48]} Ne4 {[%emt 0:08:30]} 21. b4 {[%emt 0:00:11]} Rc8 {[%emt 0:05:59]} 22. Qc2 {[%emt 0:01:19]} Nd6 {[%emt 0:02:18]} 23. a4 {[%emt 0:01:07]} Nc4 {[%emt 0:00:58]} 24. Qc3 {[%emt 0:00:57]} Bxd4 {[%emt 0:06:56]} 25. Rxd4 {[%emt 0:03:51]} Qf6 {[%emt 0:05:58]} 26. Qd3 {[%emt 0:09:48]} a6 {[%emt 0:00:35]} 27. Rf4 {[%emt 0:03:57]} Qe7 {[%emt 0:00:22]} 28. b5 {[%emt 0:00:32]} axb5 {[%emt 0:00:03]} 29. axb5 {[%emt 0:00:04]} g5 {[%emt 0:00:29]} 30. Rd4 {[%emt 0:00:19]} cxb5 {[%emt 0:00:53]} 31. Bxd5 {[%emt 0:00:23]} Rc5 {[%emt 0:00:22]} 32. Bxc4 {[%emt 0:04:53]} bxc4 {[%emt 0:00:03]} 33. Rxc4 {[%emt 0:00:04]} Rxc4 {[%emt 0:00:02]} 34. Qxc4 {[%emt 0:00:04]} Qe4 {[%emt 0:00:33]} 35. Qe2 {[%emt 0:00:31]} g4 {[%emt 0:00:39]} 36. Rc1 {[%emt 0:03:23]} Rb8 {[%emt 0:00:30]} 37. Qc4 {[%emt 0:00:26]} Qf3 {[%emt 0:01:22]} 38. Qf4 {[%emt 0:01:43]} Qxf4 {[%emt 0:00:03]} 39. gxf4 {[%emt 0:00:27]} f5 {[%emt 0:00:57]} 40. Rc5 {[%emt 0:00:29]} g6 {[%emt 0:00:01]} 41. Rc7 {[%emt 0:30:38]} Rb2 {[%emt 0:31:11]} 42. Kg2 {[%emt 0:00:00]} Kf8 {[%emt 0:00:00]} 43. Kg3 {[%emt 0:00:00]} Ra2 {[%emt 0:00:00]} 44. Rb7 {[%emt 0:00:00]} Rc2 {[%emt 0:00:00]} 45. Rh7 {[%emt 0:00:00]} Kg8 {[%emt 0:00:00]} 46. Ra7 {[%emt 0:00:00]} Kf8 {[%emt 0:00:00]} 47. Rd7 {[%emt 0:00:00]} Ra2 {[%emt 0:00:00]} 48. Rc7 {[%emt 0:00:00]} Rb2 {[%emt 0:00:00]} 49. Rh7 {[%emt 0:00:00]} Kg8 {[%emt 0:00:00]} 50. Ra7 {[%emt 0:00:00]} Kf8 {[%emt 0:00:00]} 51. h4 {[%emt 0:00:00]} gxh3 {[%emt 0:00:00]} 52. Rh7 {[%emt 0:00:00]} Rb1 {[%emt 0:00:00]} 53. Rxh3 {[%emt 0:00:00]} Kg7 {[%emt 0:00:00]} 54. Kg2 {[%emt 0:00:00]} Ra1 {[%emt 0:00:00]} 55. Rh1 {[%emt 0:00:00]} Ra2 {[%emt 0:00:00]} (55... Rxh1 56. Kxh1 Kh7 57. Kh2 $18) 56. Rb1 {[%emt 0:00:00]} Kf6 {[%emt 0:00:00]} 57. Kg3 {[%emt 0:00:00]} Rc2 {[%emt 0:00:00]} 58. Rb6+ {[%emt 0:00:00]} Kf7 {[%emt 0:00:00]} 59. Kf3 {[%emt 0:00:00]} Ra2 {[%emt 0:00:00]} 60. Rd6 {[%emt 0:00:01]} Rb2 {[%emt 0:00:00]} 61. Kg2 {[%emt 0:00:14]} Ra2 {[%emt 0:00:00]} 62. Kf1 {[%emt 0:00:09]} Rb2 {[%emt 0:00:00]} 63. Ke1 {[%emt 0:00:09]} Ra2 {[%emt 0:00:00]} 64. Rd2 {[%emt 0:00:07]} Ra3 {[%emt 0:00:00]} 65. Ke2 {[%emt 0:00:18]} Ke6 {[%emt 0:00:00]} 66. Rc2 {[%emt 0:00:25]} Ke7 {[%emt 0:08:19]} 67. f3 {[%emt 0:00:42]} Ra6 {[%emt 0:02:09]} 68. e4 {[%emt 0:01:11]} Ke6 {[%emt 0:00:27]} 69. Rc3 {[%emt 0:01:29]} Kf6 {[%emt 0:02:32]} 70. e5+ {[%emt 0:01:13]} ({White should play} 70. Ke3 $14) 70... Ke6 {[%emt 0:00:09]} 71. Kf2 {[%emt 0:00:54]} Kf7 {[%emt 0:01:29]} 72. Rc7+ {[%emt 0:00:43]} Kf8 {[%emt 0:00:25]} 73. Ke3 {[%emt 0:03:45]} Ra4 $1 {[%emt 0:00:14]} 74. Rd7 {[%emt 0:00:18]} Rb4 {[%emt 0:00:23]} 75. Rd4 {[%emt 0:01:28]} Rb3+ {[%emt 0:00:05]} 76. Kf2 {[%emt 0:01:20]} ({But not} 76. Rd3 $6 Rb4 77. Rd4 Rb2 $16) 76... Rb2+ {[%emt 0:00:08]} 77. Kg3 {[%emt 0:00:13]} Kg7 {[%emt 0:01:14]} 78. Rd7+ {[%emt 0:01:12]} Kf8 {[%emt 0:00:50]} 79. Rd1 $1 {[%emt 0:01:35]} Re2 {[%emt 0:00:29]} 80. Rf1 {[%emt 0:01:48]} Kf7 {[%emt 0:00:20]} 81. Rf2 {[%emt 0:00:22]} Re1 {[%emt 0:00:09]} 82. Ra2 {[%emt 0:00:36]} Rg1+ {[%emt 0:00:36]} 83. Kf2 {[%emt 0:00:29]} Rb1 {[%emt 0:00:03]} 84. Ra4 {[%emt 0:00:42]} Rb3 {[%emt 0:00:18]} 85. Rc4 {[%emt 0:00:27]} Ra3 {[%emt 0:00:31]} 86. Ke2 {[%emt 0:00:31]} Rb3 {[%emt 0:00:31]} 87. Ra4 {[%emt 0:00:37]} Rc3 {[%emt 0:00:16]} 88. Rd4 {[%emt 0:00:28]} Ra3 {[%emt 0:01:03]} 89. Kf2 {[%emt 0:00:35]} Ra2+ {[%emt 0:00:38]} 90. Kg3 {[%emt 0:00:20]} Re2 {[%emt 0:00:19]} 91. Rd6 {[%emt 0:00:20]} Kg7 {[%emt 0:00:25]} 92. Rd7+ {[%emt 0:00:18]} Kf8 {[%emt 0:00:35]} 93. Kh4 {[%emt 0:00:16]} Rg2 $1 {[%emt 0:00:04]} 94. Ra7 {[%emt 0:00:36]} Rg1 {[%emt 0:00:44]} 95. Ra2 {[%emt 0:00:48]} Kf7 {[%emt 0:00:30]} 96. Re2 {[%emt 0:00:22]} Rh1+ {[%emt 0:00:51]} 97. Kg3 {[%emt 0:00:03]} Rg1+ {[%emt 0:00:34]} 98. Kf2 {[%emt 0:01:00]} Ra1 {[%emt 0:00:07]} 99. Re1 {[%emt 0:00:11]} Ra2+ {[%emt 0:00:24]} 100. Kg3 {[%emt 0:00:08]} Rb2 {[%emt 0:00:34]} 101. Kh3 {[%emt 0:01:40]} Rf2 {[%emt 0:00:41]} 102. Kg3 {[%emt 0:00:25]} Rb2 {[%emt 0:00:17]} 103. Rc1 {[%emt 0:00:15]} Re2 {[%emt 0:00:22]} 104. Rc7+ {[%emt 0:00:24]} Kf8 {[%emt 0:00:08]} 105. Kh4 {[%emt 0:00:21]} Rg2 $1 {[%emt 0:00:04]} 106. e6 {[%emt 0:00:15]} Rg1 {[%emt 0:02:23]} 107. Ra7 {[%emt 0:01:05]} Rg2 {[%emt 0:00:29]} 108. Rf7+ {[%emt 0:00:46]} Kg8 {[%emt 0:00:15]} 109. Rb7 {[%emt 0:00:27]} Kf8 {[%emt 0:00:04]} 110. Rb3 {[%emt 0:00:34]} Ke7 {[%emt 0:00:50]} 111. Re3 {[%emt 0:00:02]} Rg1 {[%emt 0:00:42]} 112. Re2 {[%emt 0:00:08]} Rf1 {[%emt 0:00:29]} 113. Re3 {[%emt 0:00:28]} Rg1 {[%emt 0:00:04]} 114. Re2 {[%emt 0:00:20]} Rf1 {[%emt 0:00:04]} 115. Re3 $1 {[%emt 0:00:14]} Rg1 {[%emt 0:00:04]} 116. Re2 {[%emt 0:00:07]} Rf1 {[%emt 0:00:26]} 1/2-1/2

[Event "USA Championship 2022"]
[Site "Saint Louis"]
[Date "2022.10.09"]
[Round "5.2"]
[White "Liang, Awonder"]
[Black "Aronian, Levon"]
[Result "1-0"]
[ECO "C44"]
[WhiteElo "2608"]
[BlackElo "2755"]
[Annotator "TA"]
[PlyCount "63"]
[EventDate "2022.09.05"]
[EventType "tourn"]
[EventCountry "USA"]
[SourceTitle "playchess.com"]
[Source "ChessBase"]
[SourceQuality "1"]
[TimeControl "40/5400+30:1800+30"]

{[%evp 16,63,0,0,0,0,0,0,7,2,4,1,17,19,78,78,108,83,158,146,253,260,374,380,372,315,504,511,490,505,499,495,579,485,888,868,925,932,29966,29967,29967,29968,29968,29969,29966,29967,29958,6311,29973,29973]} 1. e4 {[%emt 0:00:01]} e5 {[%emt 0:00:07]} 2. Nf3 {[%emt 0:00:06]} Nc6 {[%emt 0:00:05]} 3. d4 {[%emt 0:00:05]} exd4 {[%emt 0:00:06]} 4. Bc4 {[%emt 0:00:05]} Bc5 {[%emt 0:01:44]} 5. Ng5 {[%emt 0:00:34]} Nh6 {[%emt 0:00:25]} 6. Nxf7 {[%emt 0:00:19]} Nxf7 {[%emt 0:00:06]} 7. Bxf7+ {[%emt 0:00:07]} Kxf7 {[%emt 0:00:07]} 8. Qh5+ {[%emt 0:00:05]} g6 {[%emt 0:00:16]} 9. Qxc5 {[%emt 0:00:02]} d5 {[%emt 0:01:42] is more profitable than 9...d6 at the moment. C44: Ponziani Opening and Scotch Gambit.} 10. c3 $5 {[%emt 0:01:07][%mdl 4] A promising side line.} (10. Qxd5+ Qxd5 11. exd5 Re8+ 12. Kd1 Nb4 $17) (10. exd5 Re8+ 11. Kd1 Re5 $17) 10... dxe4 {[%emt 0:02:12]} 11. O-O {[%emt 0:00:22]} Re8 {[%emt 0:09:13] The position is equal.} 12. cxd4 {[%emt 0:00:11]} Qxd4 {[%emt 0:04:38]} 13. Qg5 {[%emt 0:00:17] [#]} Nb4 $146 {[%emt 0:12:32]} ({Predecessor:} 13... Qf6 14. Qg3 Ne5 15. Nc3 Bf5 16. Bg5 Qd6 17. Bf4 Qe6 18. Rae1 Nd3 19. Re3 Nxf4 20. Qxf4 {0-1 (31) Samsonkin,A (2428)-Vokhidov,S (2530) Chess.com INT 2021}) 14. Bd2 {[%emt 0:12:53][%mdl 1024] Strongly threatening Bc3. White has compensation.} Qd6 {[%emt 0:20:51] [#]} (14... Kg8 $1 $11 {remains equal.}) 15. Nc3 $1 $16 {[%emt 0:22:19] And now Nb5 would win.} (15. Bxb4 Qxb4 16. Nc3 Kg7 $11) 15... c6 {[%emt 0:12:15] Prevents Nb5.} 16. Rad1 {[%emt 0:07:50] Black must now prevent Qh4.} Bf5 {[%emt 0:15:23]} (16... Qe7 $142) 17. g4 {[%emt 0:08:06]} h6 {[%emt 0:06:19]} (17... Bd7 $16 {was worth a try.}) 18. Qh4 $18 {[%emt 0:00:39]} (18. Qxh6 Rh8 19. Nxe4 Bxe4 $14) 18... Bc8 {[%emt 0:00:01]} (18... Bd7 $142 19. Qxh6 Qf8) 19. Bxh6 {[%emt 0:06:34]} (19. Qxh6 Qf8 $18) 19... Nd3 {[%emt 0:02:21]} 20. Bg5 {[%emt 0:10:47]} Qe5 {[%emt 0:00:53]} (20... Qd4 {is a better defense.} 21. Be3 Qh8 22. Qxh8 Rxh8) 21. f3 {[%emt 0:06:44]} ({Weaker is} 21. Qh7+ Qg7 22. Qh3 Qe5 $18) 21... Rh8 {[%emt 0:06:40]} 22. fxe4+ {[%emt 0:01:07]} Kg8 {[%emt 0:00:06]} 23. Bh6 {[%emt 0:00:19] Intending Rf8+ and mate.} ({Not} 23. Rxd3 Rxh4 24. Rd8+ Kg7 25. Bxh4 b5 26. Bf6+ Qxf6 27. Rg8+ (27. Rxf6 Kxf6 28. Kf2 Ke6 $18) 27... Kxg8 $18) 23... Qd4+ {[%emt 0:01:21]} 24. Kh1 {[%emt 0:00:31] White threatens Rf8+ and mate.} Be6 {[%emt 0:00:22]} (24... Bxg4 $142 25. Qxg4 Rxh6) 25. Qg5 {[%emt 0:05:30]} Bf7 {[%emt 0:00:17] [#]} 26. Rxf7 $1 {[%emt 0:01:27][%mdl 512]} Rxh6 {[%emt 0:00:44]} (26... Kxf7 27. Rf1+) 27. Rxd3 {[%emt 0:05:56]} Qxd3 {[%emt 0:01:26]} 28. Qf6 {[%emt 0:00:02][%csl Gf7][%cal Rf6g7]} Rxh2+ {[%emt 0:00:23]} 29. Kxh2 {[%emt 0:00:01][%csl Gf7][%cal Rf6g7]} Qd2+ {[%emt 0:00:08]} 30. Kg1 {[%emt 0:00:50][%csl Gf7][%cal Rf6g7]} Qc1+ {[%emt 0:00:58]} 31. Kf2 {[%emt 0:00:42]} (31. Kg2 $142 Qxb2+ 32. Kf3 Qxc3+ 33. Qxc3 Kxf7 34. Qb3+ Kf6 35. Qxb7 Rf8 36. Qxc6+ Ke7+ 37. Ke3) 31... Qh6 {[%emt 0:00:34]} 32. g5 {[%emt 0:00:28] Black got outplayed after the opening.  Weighted Error Value: White=0.14 (very precise) /Black=0.78} 1-0

[Event "USA Championship 2022"]
[Site "Saint Louis"]
[Date "2022.10.09"]
[Round "5.3"]
[White "Dominguez Perez, Leinier"]
[Black "Niemann, Hans Moke"]
[Result "1/2-1/2"]
[ECO "C67"]
[WhiteElo "2747"]
[BlackElo "2699"]
[Annotator "TA"]
[PlyCount "72"]
[EventDate "2022.09.05"]
[EventType "tourn"]
[EventCountry "USA"]
[SourceTitle "playchess.com"]
[Source "ChessBase"]
[SourceQuality "1"]
[TimeControl "40/5400+30:1800+30"]

{[%evp 16,72,37,0,-10,-15,-30,-33,18,20,21,20,12,10,21,8,26,31,50,0,42,36,74,69,68,75,75,0,0,0,0,0,0,0,0,0,0,0,6,0,0,0,0,0,7,7,7,10,11,11,11,7,7,0,11,0,7,0,11]} 1. e4 {[%emt 0:01:33]} e5 {[%emt 0:01:58]} 2. Nf3 {[%emt 0:00:03]} Nc6 {[%emt 0:00:08]} 3. Bb5 {[%emt 0:00:08]} Nf6 {[%emt 0:01:10]} 4. O-O {[%emt 0:00:05]} Nxe4 {[%emt 0:00:10]} 5. d4 {[%emt 0:00:04]} Nd6 {[%emt 0:00:13]} 6. Bxc6 {[%emt 0:00:03]} dxc6 {[%emt 0:00:08]} 7. dxe5 {[%emt 0:00:03]} Nf5 {[%emt 0:00:10]} 8. Qxd8+ {[%emt 0:00:05]} Kxd8 {[%emt 0:00:10]} 9. h3 {[%emt 0:00:03]} Bd7 {[%emt 0:00:26] C67: Ruy Lopez: Berlin Defence: 4 0-0 Nxe4.} 10. Rd1 {[%emt 0:00:54]} Be7 {[%emt 0:00:14]} 11. Nc3 {[%emt 0:04:46]} Ke8 {[%emt 0:04:00]} (11... Kc8 $15) 12. g4 {[%emt 0:02:47] [#] Strongly threatening Rxd7.} Nh4 {[%emt 0:00:12]} 13. Nxh4 {[%emt 0:00:05]} Bxh4 {[%emt 0:00:09]} 14. Kg2 $36 {[%emt 0:04:16][%mdl 2048] [#] Black is under pressure.} h5 $146 {[%emt 0:05:15]} ({Predecessor:} 14... a5 15. Be3 b6 16. b3 Rd8 17. Bf4 h5 18. f3 Be6 19. Bg3 Be7 20. Ne2 hxg4 21. hxg4 {½-½ (53) Sherwood,R (2415)-Potrata,J (2417) ICCF email 2021}) 15. f3 {[%emt 0:11:05]} hxg4 {[%emt 0:08:10]} 16. hxg4 {[%emt 0:00:18]} f6 {[%emt 0:01:19]} 17. Bf4 {[%emt 0:35:16]} (17. exf6 $14 gxf6 18. Bf4) 17... f5 {[%emt 0:04:47]} (17... g5 $5 {[%cal Rg5f4]} 18. Be3 f5 $14) 18. g5 {[%emt 0:00:58]} Rh5 {[%emt 0:00:10]} 19. Ne2 {[%emt 0:01:34] White is more active.} Ke7 {[%emt 0:07:27]} 20. Rh1 {[%emt 0:11:39]} Rah8 {[%emt 0:00:14] [#]} 21. Rh3 {[%emt 0:11:44]} ({Better is} 21. Be3 $1 $16) 21... Bxg5 $11 {[%emt 0:01:15] The position is equal.} 22. Rxh5 {[%emt 0:00:47]} Rxh5 {[%emt 0:00:06]} 23. Rh1 {[%emt 0:03:50]} Bxf4 {[%emt 0:00:11]} 24. Rxh5 {[%emt 0:00:01]} Bxe5 {[%emt 0:00:08][%mdl 4096] Endgame KRN-KB} 25. b3 {[%emt 0:00:01]} c5 {[%emt 0:01:06]} 26. c4 {[%emt 0:01:40]} a5 {[%emt 0:02:38]} 27. Kf2 {[%emt 0:00:03]} a4 {[%emt 0:04:22]} 28. Ke3 {[%emt 0:00:03]} axb3 {[%emt 0:00:14]} 29. axb3 {[%emt 0:00:01]} Kf6 {[%emt 0:00:38]} 30. f4 {[%emt 0:03:03]} Bd6 {[%emt 0:00:26]} 31. Nc3 {[%emt 0:01:26]} Bc6 {[%emt 0:00:11]} 32. Rh8 {[%emt 0:00:22][%mdl 1024] White has compensation.} b6 {[%emt 0:00:35]} 33. Rg8 {[%emt 0:03:20]} Kf7 {[%emt 0:00:09]} 34. Rh8 {[%emt 0:00:37]} Kf6 {[%emt 0:00:05]} 35. Rg8 {[%emt 0:00:28]} Kf7 {[%emt 0:00:06]} 36. Rh8 {[%emt 0:00:04]} Kf6 {[%emt 0:00:12] Weighted Error Value: White=0.08 (flawless) /Black=0.07 (flawless)} 1/2-1/2

[Event "USA Championship 2022"]
[Site "Saint Louis"]
[Date "2022.10.09"]
[Round "5.4"]
[White "Yoo, Christopher Woojin"]
[Black "Sevian, Samuel"]
[Result "1/2-1/2"]
[ECO "C54"]
[WhiteElo "2563"]
[BlackElo "2684"]
[Annotator "TA"]
[PlyCount "230"]
[EventDate "2022.09.05"]
[EventType "tourn"]
[EventCountry "USA"]
[SourceTitle "playchess.com"]
[Source "ChessBase"]
[SourceQuality "1"]
[TimeControl "40/5400+30:1800+30"]

{[%evp 56,230,122,133,209,209,229,231,232,101,93,99,99,88,112,81,116,117,116,116,116,116,123,107,116,108,104,104,180,180,180,180,180,180,173,154,162,151,154,135,135,135,140,0,140,133,140,140,140,140,140,140,140,140,140,140,140,127,140,140,140,140,140,140,140,140,140,140,140,100,100,100,121,77,77,0,140,0,140,140,140,140,140,140,140,140,130,88,100,60,100,100,100,91,91,91,87,56,60,0,100,100,100,98,98,83,83,83,83,83,97,97,97,97,97,97,97,75,75,75,75,43,43,8,8,8,8,8,8,0,0,0,8,8,8,0,8,0,8,0,0,0,8,8,8,8,8,8,8,8,8,8,8,8,8,0,0,0,8,8,8,8,8,0,0,0,0,0,0,0,8,0,0,0,8,0,0]} 1. e4 {[%emt 0:00:55]} e5 {[%emt 0:00:09]} 2. Nf3 {[%emt 0:00:05]} Nc6 {[%emt 0:00:07]} 3. Bc4 {[%emt 0:00:05]} Bc5 {[%emt 0:00:19]} 4. c3 {[%emt 0:00:06]} Nf6 {[%emt 0:00:07]} 5. d4 {[%emt 0:00:03]} exd4 {[%emt 0:00:10]} 6. e5 {[%emt 0:00:07]} d5 {[%emt 0:00:35]} 7. Be2 {[%emt 0:00:04]} Ne4 {[%emt 0:02:23]} 8. cxd4 {[%emt 0:00:05]} Bb6 {[%emt 0:02:31]} 9. Nc3 {[%emt 0:00:05]} O-O {[%emt 0:01:25]} 10. O-O {[%emt 0:00:05]} Kh8 {[%emt 0:11:32]} 11. Be3 {[%emt 0:03:02]} f5 {[%emt 0:01:03]} 12. exf6 {[%emt 0:01:01]} Nxf6 {[%emt 0:05:09]} 13. h3 {[%emt 0:04:05]} Bf5 {[%emt 0:04:33]} 14. Na4 {[%emt 0:02:12]} Ne4 {[%emt 0:02:25]} 15. Rc1 {[%emt 0:05:21]} Qe8 {[%emt 0:05:39]} 16. Bb5 {[%emt 0:02:14]} Bd7 {[%emt 0:00:13]} 17. Bxc6 {[%emt 0:06:10]} Bxc6 {[%emt 0:00:49]} 18. Nxb6 {[%emt 0:00:07]} axb6 {[%emt 0:00:08]} 19. a3 {[%emt 0:00:47]} Nd6 {[%emt 0:04:50]} 20. Bd2 {[%emt 0:06:08]} Nc4 {[%emt 0:00:46]} 21. Bb4 {[%emt 0:06:06]} Rf4 {[%emt 0:14:56]} 22. Re1 {[%emt 0:03:19]} Qg6 {[%emt 0:10:55]} 23. Rc3 {[%emt 0:03:53]} Re4 {[%emt 0:07:40]} 24. b3 {[%emt 0:03:42]} Nd6 {[%emt 0:00:05]} 25. Ne5 {[%emt 0:01:47]} Qe8 {[%emt 0:00:01]} 26. Rxe4 {[%emt 0:05:22]} dxe4 {[%emt 0:00:25]} 27. Qg4 {[%emt 0:01:52]} Rd8 {[%emt 0:05:48]} 28. Rg3 {[%emt 0:02:33]} Qe7 {[%emt 0:00:06]} 29. Bd2 {[%emt 0:02:16]} Re8 {[%emt 0:06:30]} (29... Ra8 $16) 30. Qh5 $18 {[%emt 0:04:10]} Qe6 {[%emt 0:00:10]} 31. Rg6 $1 {[%emt 0:00:35]} ({Worse is} 31. Qg5 Nf5 $11) 31... Qg8 {[%emt 0:04:09]} (31... Qd5 $2 32. Rxg7 $3 {[%mdl 512]} Qg8 33. Rxg8+ $18) 32. Rxd6 {[%emt 0:11:00]} (32. Rg5 $1 $18 {[%csl Gg5,Gh5][%cal Re5g6] and the rest is easy.} Re6 33. d5) 32... Rxe5 $16 {[%emt 0:00:11]} 33. dxe5 {[%emt 0:00:07]} cxd6 {[%emt 0:00:05]} 34. exd6 {[%emt 0:00:04]} Qxb3 {[%emt 0:01:54]} 35. Qf5 {[%emt 0:01:39]} e3 {[%emt 0:04:15]} 36. Qc8+ {[%emt 0:21:37]} Qg8 {[%emt 0:00:05]} 37. Qxg8+ {[%emt 0:00:35]} Kxg8 {[%emt 0:00:03]} 38. Bxe3 {[%emt 0:00:05]} b5 {[%emt 0:00:04]} 39. f3 {[%emt 0:00:53]} Kf7 {[%emt 0:00:11]} 40. Kf2 {[%emt 0:01:08]} Ke6 {[%emt 0:00:06]} 41. Bc5 {[%emt 0:30:09]} b6 {[%emt 0:09:20]} (41... Kf5 $16 {was worth a try.}) 42. Bb4 $1 $18 {[%emt 0:00:00]} ({Resist} 42. Bxb6 $6 Kxd6 43. Ke3 Bd5 $14) 42... Kf5 {[%emt 0:06:03]} 43. Kg3 {[%emt 0:00:00]} Be8 {[%emt 0:03:20]} 44. Bc3 {[%emt 0:00:00]} g6 {[%emt 0:00:29]} 45. Bd2 {[%emt 0:00:00]} Ke5 {[%emt 0:00:48]} 46. Bb4 {[%emt 0:00:00]} Kf5 {[%emt 0:05:25]} 47. Kf2 {[%emt 0:00:00]} Ke5 {[%emt 0:00:27]} 48. Ke3 {[%emt 0:00:00]} Bd7 {[%emt 0:01:11]} 49. Kf2 {[%emt 0:00:00]} Be8 $1 {[%emt 0:00:06]} 50. Ke2 {[%emt 0:00:00]} Bc6 {[%emt 0:00:51]} 51. Kf1 {[%emt 0:00:00]} Bd7 {[%emt 0:00:21]} 52. Kg1 {[%emt 0:00:00]} Bc6 {[%emt 0:00:23]} 53. Kh2 {[%emt 0:00:00]} Be8 {[%emt 0:00:14]} 54. g4 {[%emt 0:00:17]} Kf4 {[%emt 0:03:36]} 55. Kg2 {[%emt 0:00:04]} Bc6 {[%emt 0:00:10] [#]} 56. Kf2 $1 {[%emt 0:00:21]} Ke5 {[%emt 0:00:09]} 57. Kg3 {[%emt 0:00:31]} Ke6 {[%emt 0:01:00]} 58. f4 {[%emt 0:01:28]} h6 {[%emt 0:03:26]} 59. Kf2 {[%emt 0:03:46]} Bd7 {[%emt 0:00:42]} 60. Kf3 {[%emt 0:00:37]} Bc6+ {[%emt 0:03:35]} 61. Ke3 {[%emt 0:00:38]} Bd7 {[%emt 0:01:55]} 62. Ke4 {[%emt 0:01:17]} Bc6+ {[%emt 0:00:01]} 63. Kd4 {[%emt 0:00:06]} Bd7 {[%emt 0:00:08]} 64. Kd3 {[%emt 0:01:15]} Kd5 {[%emt 0:00:41]} 65. Ke3 {[%emt 0:00:24]} ({White should play} 65. Ke2) 65... Ke6 $1 $16 {[%emt 0:00:04]} 66. Kf3 {[%emt 0:00:39]} Bc6+ {[%emt 0:00:05]} 67. Kg3 {[%emt 0:00:10]} Bd7 {[%emt 0:00:34]} 68. h4 {[%emt 0:01:47]} Be8 {[%emt 0:01:03]} 69. Kf3 {[%emt 0:00:14]} Bc6+ {[%emt 0:02:13] [#]} 70. Kf2 $1 {[%emt 0:00:15]} Bd7 {[%emt 0:00:07]} 71. Ke3 {[%emt 0:01:57]} Bc6 {[%emt 0:01:30]} 72. Kd3 {[%emt 0:01:27]} Bd7 {[%emt 0:00:36]} 73. Ke4 {[%emt 0:00:15]} Bc6+ {[%emt 0:00:03]} 74. Ke3 {[%emt 0:00:05]} Bd7 {[%emt 0:01:00]} 75. Kf2 {[%emt 0:00:24]} Bc6 {[%emt 0:00:20]} 76. Ke2 {[%emt 0:01:05]} Be8 {[%emt 0:00:29]} 77. Ke3 {[%emt 0:01:06]} Bc6 {[%emt 0:00:12]} 78. Kd4 {[%emt 0:00:46]} Bd7 {[%emt 0:00:58]} 79. h5 {[%emt 0:01:23]} gxh5 {[%emt 0:00:13]} 80. gxh5 {[%emt 0:00:04]} Bc6 {[%emt 0:01:24]} 81. Ke3 {[%emt 0:00:08]} Be8 {[%emt 0:00:07]} 82. Ke4 {[%emt 0:00:07]} Bxh5 {[%emt 0:02:41]} 83. f5+ {[%emt 0:00:04]} Kd7 {[%emt 0:00:02]} 84. Ke5 {[%emt 0:00:13]} Bd1 {[%emt 0:01:17]} 85. Be1 {[%emt 0:01:59]} h5 {[%emt 0:00:14]} 86. Bg3 {[%emt 0:00:08]} Bb3 {[%emt 0:00:15]} 87. Kf6 {[%emt 0:00:54]} h4 {[%emt 0:00:10]} 88. Be5 {[%emt 0:00:46]} h3 {[%emt 0:01:03]} 89. Kg7 {[%emt 0:00:15]} Ke8 {[%emt 0:00:12]} 90. f6 {[%emt 0:00:10]} Be6 {[%emt 0:00:09]} 91. Bh2 {[%emt 0:00:09]} Ba2 {[%emt 0:00:10]} 92. Kg6 {[%emt 0:00:03]} Bf7+ {[%emt 0:00:17]} 93. Kg5 {[%emt 0:00:34]} Kd7 {[%emt 0:00:06]} 94. Kf5 {[%emt 0:00:02]} Be6+ {[%emt 0:00:13]} 95. Ke5 {[%emt 0:00:40]} Bf7 {[%emt 0:00:05]} 96. Bg3 {[%emt 0:00:03]} Ba2 {[%emt 0:00:04]} 97. Bh2 {[%emt 0:00:42]} Bf7 {[%emt 0:00:03]} 98. Bf4 {[%emt 0:00:10]} Ba2 {[%emt 0:00:04]} 99. Kf5 {[%emt 0:00:41]} Be6+ {[%emt 0:00:31]} 100. Kg5 {[%emt 0:00:28]} Bf7 {[%emt 0:00:06]} 101. Kg4 {[%emt 0:00:04]} Be6+ {[%emt 0:00:05]} 102. Kh5 {[%emt 0:00:04]} Bf7+ {[%emt 0:00:05]} 103. Kh6 {[%emt 0:00:03]} Be6 {[%emt 0:00:08]} 104. Be5 {[%emt 0:00:04]} (104. Kg6 $5 {[%cal Rf6f7]} Ke8 105. Kg7 $11) 104... Ba2 {[%emt 0:00:12]} 105. Kg5 {[%emt 0:00:05]} Bf7 {[%emt 0:00:13]} 106. Kf5 {[%emt 0:00:07]} Be6+ {[%emt 0:00:07]} 107. Kg6 {[%emt 0:00:11]} Ke8 {[%emt 0:00:04]} 108. Bf4 {[%emt 0:00:09]} Bf7+ {[%emt 0:00:05]} 109. Kf5 {[%emt 0:00:04]} Kd7 {[%emt 0:00:04]} 110. Be5 {[%emt 0:00:05]} Be6+ {[%emt 0:00:03]} 111. Kg5 {[%emt 0:00:05]} Bf7 {[%emt 0:00:06]} 112. Kh6 {[%emt 0:00:09]} Be6 {[%emt 0:01:48]} 113. Kg5 {[%emt 0:00:18]} Bf7 {[%emt 0:00:04]} 114. Kh6 {[%emt 0:00:05]} Be6 {[%emt 0:00:03]} 115. Kg5 {[%emt 0:00:16]} Bf7 {[%emt 0:00:04]} 1/2-1/2